bitfinex/quotes_SOLUSD_20250206
["timestamp","ask_amount","ask_price","bid_price","bid_amount"]
[1738873016060,14.82394484,191.0,190.99,0.503]
[1738873016767,14.82394484,191.0,190.99,1.503]
[1738873017578,31.21848968,191.0,190.99,0.503]
[1738873017779,16.39454484,191.0,190.99,0.503]
[1738873018952,14.92529107,191.04,191.03,0.503]
[1738873019283,0.10134623,191.04,191.03,1.503]
[1738873020874,0.10134623,191.04,191.03,21.81262484]
[1738873021077,0.13134623,191.04,191.03,35.34996337]
[1738873021280,0.1057091,191.05,191.04,15.29131853]
[1738873021458,0.1057091,191.05,191.04,30.11526337]
[1738873021979,0.1057091,191.05,191.04,35.34976337]
[1738873022477,0.09605155,191.06,191.04,35.34976337]
[1738873022478,0.09605155,191.06,191.05,18.96790853]
[1738873022657,0.11102819,191.08,191.07,3.33997]
[1738873022859,0.11102819,191.08,191.07,42.33266283]
[1738873024560,0.11102819,191.08,191.07,46.56626283]
[1738873025084,0.11102819,191.08,191.07,45.56626283]
[1738873025575,0.11102819,191.08,191.07,44.65611137]
[1738873025765,0.11102819,191.08,191.07,31.11877284]
[1738873025950,0.11102819,191.08,191.07,31.90358605]
[1738873026578,0.11102819,191.08,191.07,31.11877284]
[1738873026963,0.11102819,191.08,191.07,44.78160137]
[1738873027289,1.291e-05,191.1,191.09,15.41680853]
[1738873027462,9.535e-05,191.11,191.1,17.41680853]
[1738873027662,9.535e-05,191.11,191.1,64.75819421]
[1738873028360,9.535e-05,191.11,191.1,65.54269646]
[1738873028751,0.1025631,191.13,191.11,16.29131853]
[1738873028955,0.1025631,191.13,191.11,21.52381853]
[1738873029565,6.38e-06,191.12,191.11,45.32000137]
[1738873029756,0.1025631,191.13,191.12,17.41680853]
[1738873029962,23.70069284,191.28,191.26,0.503]
[1738873030576,1.5983,191.28,191.27,0.503]
[1738873031086,0.03,191.28,191.27,1.503]
[1738873033388,23.70069284,191.28,191.27,1.503]
[1738873033582,0.03,191.28,191.27,1.503]
[1738873034291,23.70069284,191.28,191.27,0.503]
[1738873034456,23.70069284,191.28,191.26,0.503]
[1738873034655,23.67069284,191.27,191.24,1.503]
[1738873034857,23.67069284,191.25,191.22,0.503]
[1738873035089,1.5688,191.22,191.21,0.503]
[1738873035287,25.23949284,191.22,191.2,0.503]
[1738873035466,23.67069284,191.21,191.2,0.503]
[1738873036967,1.569,191.2,191.19,0.503]
[1738873037283,25.23969284,191.2,191.19,0.503]
[1738873037494,25.23969284,191.2,191.18,0.503]
[1738873037698,23.67069284,191.19,191.18,0.503]
[1738873037869,23.67069284,191.19,191.18,1.503]
[1738873038271,23.67069284,191.19,191.18,0.503]
[1738873038479,23.67069284,191.19,191.17,0.503]
[1738873038671,1.569,191.2,191.18,0.503]
[1738873039172,1.569,191.2,191.18,1.503]
[1738873039688,0.09515896,191.23,191.21,0.503]
[1738873039689,1.5689,191.22,191.21,0.503]
[1738873039996,25.23959284,191.22,191.2,0.503]
[1738873040165,23.67069284,191.21,191.2,0.503]
[1738873040593,25.23959284,191.22,191.2,0.503]
[1738873040800,25.23959284,191.22,191.2,1.503]
[1738873041104,25.23959284,191.22,191.21,0.503]
[1738873041468,25.23959284,191.22,191.2,0.503]
[1738873041875,25.23959284,191.22,191.2,1.503]
[1738873042090,25.23959284,191.22,191.2,0.503]
[1738873042398,23.67069284,191.21,191.19,0.503]
[1738873042597,23.67069284,191.2,191.19,0.503]
[1738873042994,1.5689,191.22,191.19,0.503]
[1738873042995,23.67069284,191.21,191.19,0.503]
[1738873043313,1.5691,191.19,191.18,0.503]
[1738873043601,25.23979284,191.19,191.18,0.503]
[1738873044892,25.23979284,191.19,191.17,0.503]
[1738873045070,23.67069284,191.18,191.17,0.503]
[1738873045486,83.6988,191.22,191.21,0.503]
[1738873045665,0.03,191.22,191.21,1.503]
[1738873045990,0.03,191.22,191.21,25.17369284]
[1738873046470,0.03,191.22,191.21,1.503]
[1738873049379,23.70069284,191.22,191.21,0.503]
[1738873049693,23.70069284,191.22,191.2,1.0]
[1738873049694,23.70069284,191.22,191.19,0.503]
[1738873049876,23.67069284,191.2,191.18,0.503]
[1738873050195,23.67069284,191.19,191.15,1.503]
[1738873050509,23.67069284,191.16,191.14,0.503]
[1738873050808,23.67069284,191.16,191.15,0.503]
[1738873052373,23.67069284,191.17,191.16,1.0]
[1738873052772,23.67069284,191.17,191.15,0.503]
[1738873053009,23.67069284,191.16,191.15,0.503]
[1738873053216,23.67069284,191.16,191.14,0.503]
[1738873053414,23.67069284,191.16,191.15,0.503]
[1738873053625,23.67069284,191.16,191.13,0.566]
[1738873053804,23.67069284,191.14,191.13,0.063]
[1738873054399,25.24019284,191.14,191.13,0.566]
[1738873054808,25.24019284,191.14,191.13,0.063]
[1738873055202,25.35444213,191.14,191.13,0.063]
[1738873055733,20.0,191.11,191.08,0.503]
[1738873055905,31.37364213,191.14,191.07,1.063]
[1738873055906,23.67069284,191.09,191.07,0.063]
[1738873056153,23.67069284,191.08,191.07,0.063]
[1738873056453,25.24069284,191.08,191.07,0.063]
[1738873057326,38.77803137,191.08,191.07,0.0001]
[1738873057530,38.90352137,191.08,191.07,0.0001]
[1738873058033,38.77803137,191.08,191.07,0.0001]
[1738873058520,20.0,191.04,191.0,0.503]
[1738873058726,23.67069284,191.01,190.99,0.503]
[1738873058891,23.67069284,191.0,190.99,0.503]
[1738873059715,23.67069284,191.02,191.01,1.503]
[1738873060030,20.0,191.04,191.02,0.503]
[1738873060211,23.67069284,191.03,191.02,0.503]
[1738873060395,23.67069284,191.03,191.02,1.503]
[1738873060602,3.925,191.08,191.04,1.503]
[1738873060821,20.0,191.05,191.03,1.0]
[1738873061019,20.0,191.05,191.04,0.503]
[1738873061213,20.0,191.05,191.03,1.503]
[1738873061729,23.67069284,191.04,191.02,1.503]
[1738873061928,23.67069284,191.03,191.01,1.503]
[1738873062138,23.67069284,191.02,191.0,1.503]
[1738873062431,25.24119284,191.01,191.0,1.503]
[1738873063233,23.67069284,191.03,191.01,1.503]
[1738873063406,23.67069284,191.05,191.04,1.503]
[1738873063730,83.6701,191.08,191.07,1.503]
[1738873064034,1.5701,191.08,191.07,1.503]
[1738873064737,23.67069284,191.11,191.08,1.503]
[1738873064915,1.5698,191.1,191.09,1.503]
[1738873065103,25.24029284,191.13,191.12,1.503]
[1738873065303,23.67069284,191.13,191.12,1.503]
[1738873065524,25.35444213,191.14,191.13,1.0]
[1738873065725,25.35444213,191.14,191.13,1.503]
[1738873065901,1.68374929,191.14,191.13,1.503]
[1738873066107,0.11424929,191.14,191.13,1.503]
[1738873066907,23.78494213,191.14,191.13,1.503]
[1738873069349,0.11424929,191.14,191.13,25.29918284]
[1738873069647,0.11424929,191.14,191.13,51.94590137]
[1738873069847,0.11424929,191.14,191.13,52.94590137]
[1738873070242,0.14424929,191.14,191.13,52.94590137]
[1738873071040,0.14424929,191.14,191.13,50.94590137]
[1738873071248,0.14424929,191.14,191.13,31.92558284]
[1738873071548,0.14424929,191.14,191.13,1.503]
[1738873071971,25.38444213,191.14,191.13,0.503]
[1738873072150,25.38444213,191.14,191.13,1.503]
[1738873072522,24.89236432,191.14,191.13,1.503]
[1738873072834,25.35211904,191.15,191.13,1.503]
[1738873073146,0.1120262,191.15,191.14,1.503]
[1738873073361,25.35211904,191.15,191.12,1.503]
[1738873073524,23.67069284,191.13,191.11,1.503]
[1738873073847,5.6050262,191.15,191.11,0.503]
[1738873073848,23.67069284,191.12,191.11,0.503]
[1738873074044,23.67069284,191.12,191.08,0.503]
[1738873074244,23.67069284,191.09,191.08,0.503]
[1738873075134,25.24059284,191.09,191.08,0.503]
[1738873075447,25.34506606,191.09,191.08,1.503]
[1738873075651,0.10447322,191.09,191.08,1.503]
[1738873076351,1.67437322,191.09,191.08,0.503]
[1738873076525,25.34506606,191.09,191.07,0.063]
[1738873076729,105.77069284,191.08,191.07,0.063]
[1738873076935,37.20803137,191.08,191.07,0.063]
[1738873077351,37.20803137,191.08,191.07,0.0001]
[1738873077352,38.90352137,191.08,191.07,0.0001]
[1738873077524,25.24069284,191.08,191.07,0.0001]
[1738873078034,25.24069284,191.08,191.07,0.5031]
[1738873078231,25.24069284,191.08,191.07,0.0001]
[1738873078550,25.24069284,191.08,191.07,1.5031]
[1738873079727,25.24069284,191.08,191.07,0.0001]
[1738873080558,0.10447322,191.09,191.08,0.503]
[1738873080730,1.67437322,191.09,191.07,0.0001]
[1738873081247,23.67069284,191.08,191.07,0.0001]
[1738873081550,25.24069284,191.08,191.07,0.0001]
[1738873081759,25.24069284,191.08,191.07,0.5031]
[1738873082048,82.20447322,191.09,191.08,0.503]
[1738873082049,83.77437322,191.09,191.08,0.503]
[1738873082253,83.77437322,191.09,191.08,1.503]
[1738873082461,83.77437322,191.09,191.07,1.0001]
[1738873082631,83.77437322,191.09,191.07,0.0001]
[1738873082956,83.77437322,191.09,191.06,0.503]
[1738873083146,20.0,191.05,191.0,0.4831]
[1738873083344,1.5704,191.03,191.0,0.4831]
[1738873083552,23.67069284,191.01,191.0,1.4831]
[1738873083733,23.67069284,191.01,191.0,0.4831]
[1738873084262,86.0259,191.04,191.0,0.4831]
[1738873084263,25.24079284,191.07,191.06,1.0]
[1738873084435,1.57,191.08,191.07,1.0]
[1738873084628,1.57,191.08,191.07,1.4831]
[1738873085031,25.24069284,191.08,191.07,1.4831]
[1738873085357,25.34506606,191.09,191.07,1.4831]
[1738873085524,0.10447322,191.09,191.08,1.4831]
[1738873087165,25.34506606,191.09,191.08,1.4831]
[1738873087357,25.34506606,191.09,191.08,0.4831]
[1738873087533,25.34506606,191.09,191.08,1.4831]
[1738873087731,25.34506606,191.09,191.08,0.4831]
[1738873087953,25.34506606,191.09,191.05,1.4831]
[1738873088253,23.67069284,191.06,191.04,0.4831]
[1738873088457,23.67069284,191.05,191.01,0.4831]
[1738873088672,23.67069284,191.02,191.01,0.4831]
[1738873088966,23.67069284,191.02,191.0,0.4831]
[1738873089132,23.67069284,191.01,191.0,0.4831]
[1738873089650,25.24119284,191.01,191.0,0.4831]
[1738873091673,25.24119284,191.01,191.0,1.4831]
[1738873091870,1.5705,191.01,191.0,1.4831]
[1738873092080,25.24089284,191.06,191.04,1.4831]
[1738873092245,23.67069284,191.05,191.04,1.4831]
[1738873092446,23.67069284,191.05,191.02,1.4831]
[1738873092660,23.67069284,191.03,191.01,0.4831]
[1738873092854,23.67069284,191.02,191.0,0.4831]
[1738873093060,23.67069284,191.01,191.0,0.4831]
[1738873093264,19.03293853,191.06,191.0,1.4831]
[1738873093265,23.67069284,191.02,191.0,1.4831]
[1738873093455,23.67069284,191.03,191.02,0.4831]
[1738873093643,23.67069284,191.04,191.03,1.4831]
[1738873093848,25.24099284,191.04,191.03,1.4831]
[1738873094246,23.67069284,191.04,191.03,1.4831]
[1738873094452,82.1,191.07,191.03,1.4831]
[1738873094453,25.24089284,191.05,191.04,1.0]
[1738873094668,25.24089284,191.05,191.04,1.4831]
[1738873095272,25.35573268,191.05,191.04,1.4831]
[1738873096283,1.68503984,191.05,191.04,1.4831]
[1738873096449,0.11483984,191.05,191.04,1.4831]
[1738873097476,0.11483984,191.05,191.04,30.76476284]
[1738873098188,0.10962712,191.07,191.06,21.60859]
[1738873098390,0.10964031,191.09,191.08,3.4831]
[1738873098593,4.031e-05,191.09,191.08,42.09334849]
[1738873098771,4.031e-05,191.09,191.08,43.0503149]
[1738873099085,4.031e-05,191.09,191.08,42.0503149]
[1738873099476,4.031e-05,191.09,191.08,43.0503149]
[1738873100176,4.031e-05,191.09,191.08,42.0503149]
[1738873100374,4.031e-05,191.09,191.08,1.4831]
[1738873100886,4.031e-05,191.09,191.08,1.3631]
[1738873101287,4.031e-05,191.09,191.08,5.19310855]
[1738873102010,23.67073315,191.09,191.08,5.19310855]
[1738873102294,4.031e-05,191.09,191.08,5.19310855]
[1738873102667,4.031e-05,191.09,191.08,1.3631]
[1738873102988,23.67073315,191.09,191.08,1.3631]
[1738873103287,4.031e-05,191.09,191.08,1.3631]
[1738873104583,4.031e-05,191.09,191.08,30.39268284]
[1738873104791,4.031e-05,191.09,191.08,1.3631]
[1738873106794,23.67073315,191.09,191.08,1.3631]
[1738873107090,23.67073315,191.09,191.08,0.3631]
[1738873107269,23.67073315,191.09,191.08,1.3631]
[1738873107472,4.031e-05,191.09,191.08,1.3631]
[1738873107685,23.67073315,191.09,191.08,0.3631]
[1738873107998,23.67073315,191.09,191.06,0.063]
[1738873108303,23.67069284,191.07,191.06,0.063]
[1738873108472,23.67069284,191.07,191.06,0.0001]
[1738873108473,38.77813137,191.07,191.06,0.0001]
[1738873108676,38.90362137,191.07,191.06,0.0001]
[1738873109481,38.77813137,191.07,191.06,0.0001]
[1738873109983,25.24079284,191.07,191.06,0.0001]
[1738873110585,38.90362137,191.07,191.06,0.0001]
[1738873110990,38.77813137,191.07,191.06,0.0001]
[1738873111191,25.24079284,191.07,191.06,0.0001]
[1738873112684,38.77813137,191.07,191.06,0.0001]
[1738873113096,38.90362137,191.07,191.06,0.0001]
[1738873114496,39.66601137,191.07,191.06,0.0001]
[1738873115209,39.13491552,191.07,191.06,0.0001]
[1738873115594,39.77181552,191.07,191.06,0.0001]
[1738873115906,39.13491552,191.07,191.06,0.0001]
[1738873117019,39.77181552,191.07,191.06,0.0001]
[1738873117307,20.0,191.03,191.0,0.4261]
[1738873117604,23.67069284,191.01,191.0,0.4261]
[1738873119907,25.24119284,191.01,191.0,0.4261]
[1738873122109,49.16286568,191.01,191.0,0.0001]
[1738873122301,20.0,190.98,190.97,0.03]
[1738873122495,43.67069284,190.98,190.97,0.03]
[1738873123322,45.24149284,190.98,190.97,0.03]
[1738873123695,13.53733853,190.97,190.96,0.0001]
[1738873123889,33.53733853,190.95,190.94,0.0001]
[1738873124120,13.53733853,190.94,190.93,0.0001]
[1738873124415,37.20803137,190.94,190.93,0.0001]
[1738873124605,23.67069284,190.94,190.93,0.0001]
[1738873124811,23.67069284,190.94,190.93,1.3632]
[1738873125321,25.24179284,190.94,190.93,1.3632]
[1738873125813,20.0,190.95,190.93,1.3632]
[1738873125814,23.67069284,190.96,190.95,1.3631]
[1738873126021,25.24169284,190.96,190.95,1.3631]
[1738873126415,23.67069284,190.96,190.95,1.3631]
[1738873126612,25.24169284,190.96,190.95,1.3631]
[1738873126924,25.24169284,190.96,190.95,0.3631]
[1738873127129,20.0,190.94,190.93,0.0001]
[1738873127301,45.24179284,190.94,190.93,0.0001]
[1738873127501,58.77913137,190.94,190.93,0.0001]
[1738873128231,58.90462137,190.94,190.93,0.0001]
[1738873128429,13.66282853,190.93,190.91,0.0001]
[1738873128630,47.46687568,190.92,190.91,0.0001]
[1738873129431,49.03817568,190.92,190.91,0.0001]
[1738873130627,48.91268568,190.92,190.91,0.0001]
[1738873130831,25.24199284,190.92,190.91,1.0001]
[1738873131129,25.24199284,190.92,190.91,0.0001]
[1738873131528,25.24199284,190.92,190.91,0.3632]
[1738873133134,25.24199284,190.92,190.91,1.3632]
[1738873133427,25.24189284,190.93,190.91,1.3632]
[1738873133632,25.24159284,190.97,190.96,0.3631]
[1738873133821,1.5708,190.98,190.97,1.3631]
[1738873134129,23.67069284,190.99,190.98,1.3631]
[1738873134332,25.24139284,191.0,190.99,0.3631]
[1738873134540,25.24139284,191.0,190.99,1.3631]
[1738873134729,1.5707,191.0,190.99,1.3631]
[1738873135413,0.10672575,191.0,190.99,1.3631]
[1738873135947,0.10672575,191.0,190.99,25.03379284]
[1738873136238,0.10672575,191.0,190.99,32.82869284]
[1738873136442,0.10672575,191.0,190.99,38.06449284]
[1738873137043,0.10672575,191.0,190.99,32.82869284]
[1738873137218,0.10672575,191.0,190.99,9.158]
[1738873137427,0.11053044,191.01,190.99,9.158]
[1738873137644,0.11053044,191.01,191.0,1.0]
[1738873137808,0.11053044,191.01,191.0,1.3631]
[1738873140612,0.11053044,191.01,191.0,25.03379284]
[1738873141026,0.11053044,191.01,191.0,30.39488284]
[1738873141345,0.11053044,191.01,191.0,56.44204568]
[1738873141516,0.10342239,191.03,191.02,3.73957]
[1738873141839,0.09932651,191.04,191.03,17.27690853]
[1738873142043,2.651e-05,191.04,191.03,40.94760137]
[1738873142617,0.09717111,191.05,191.04,17.27690853]
[1738873142825,7.111e-05,191.05,191.04,41.73238646]
[1738873143019,0.03,191.14,191.05,3.73957]
[1738873143352,0.03,191.14,191.05,27.41026284]
[1738873144256,0.03,191.14,191.05,40.94760137]
[1738873144460,0.03,191.14,191.06,40.94760137]
[1738873144637,0.03,191.14,191.06,41.73227631]
[1738873146144,0.03,191.14,191.06,46.96617631]
[1738873146660,3.321e-05,191.07,191.06,46.96617631]
[1738873147250,3.321e-05,191.07,191.06,50.79126553]
[1738873148852,0.03,191.14,191.07,1.3631]
[1738873149056,1.5696,191.13,191.07,25.03379284]
[1738873149255,1.5697,191.12,191.07,25.03379284]
[1738873149434,1.5697,191.11,191.07,25.03379284]
[1738873149963,1.5697,191.11,191.07,1.3631]
[1738873150257,25.24039284,191.11,191.07,1.3631]
[1738873150845,25.24029284,191.13,191.07,25.03379284]
[1738873151041,1.5697,191.12,191.07,25.03379284]
[1738873151763,1.5697,191.12,191.07,1.3631]
[1738873152264,25.24039284,191.12,191.07,1.3631]
[1738873152763,1.5697,191.12,191.07,1.3631]
[1738873153461,1.5697,191.12,191.07,25.03379284]
[1738873153836,0.03,191.14,191.07,30.51837284]
[1738873154163,0.03,191.14,191.07,46.96602071]
[1738873154753,7.436e-05,191.08,191.07,46.96602071]
[1738873155466,6.966e-05,191.08,191.07,207.83671355]
[1738873155659,7.301e-05,191.09,191.08,17.27690853]
[1738873155863,1.78e-06,191.1,191.09,17.27690853]
[1738873156052,0.09509617,191.11,191.1,17.27690853]
[1738873156053,9.795e-05,191.11,191.1,17.27690853]
[1738873156241,9.795e-05,191.11,191.1,65.40280291]
[1738873157475,9.795e-05,191.11,191.1,70.63560291]
[1738873158065,4.016e-05,191.12,191.11,17.27690853]
[1738873158381,6.329e-05,191.16,191.15,17.27690853]
[1738873158551,0.03,191.22,191.16,3.73957]
[1738873158552,4.079e-05,191.17,191.16,3.73957]
[1738873158755,4.079e-05,191.17,191.16,27.41026284]
[1738873159877,4.079e-05,191.17,191.16,32.64146284]
[1738873161769,4.079e-05,191.17,191.16,46.17880137]
[1738873161977,0.03,191.22,191.21,40.82211137]
[1738873162161,0.03,191.22,191.21,41.73172462]
[1738873164179,0.03,191.22,191.21,46.96152462]
[1738873164357,0.03,191.22,191.21,45.96152462]
[1738873164560,0.03,191.22,191.21,32.42418609]
[1738873164763,0.03,191.22,191.21,30.51457284]
[1738873164962,0.03,191.26,191.21,25.15928284]
[1738873165165,0.03,191.26,191.25,1.0]
[1738873165373,0.03,191.26,191.25,1.3631]
[1738873166057,0.03,191.26,191.25,25.15928284]
[1738873166266,0.03,191.26,191.25,30.38798284]
[1738873166992,0.03,191.26,191.25,25.03379284]
[1738873167278,0.03,191.26,191.25,1.3631]
[1738873167449,23.70069284,191.26,191.25,1.3631]
[1738873167853,0.03,191.26,191.25,1.3631]
[1738873168565,0.03,191.26,191.25,25.03379284]
[1738873168770,0.03,191.26,191.25,1.3631]
[1738873169485,0.03,191.26,191.25,25.03379284]
[1738873170073,0.03,191.26,191.25,1.3631]
[1738873170962,23.70069284,191.26,191.25,1.3631]
[1738873171289,23.70069284,191.26,191.15,1.84734224]
[1738873171290,6.2004,191.25,191.22,1.3631]
[1738873171460,6.2004,191.25,191.2,1.3631]
[1738873171461,23.67069284,191.23,191.2,1.3631]
[1738873171649,21.65149837,191.21,191.19,1.3631]
[1738873171850,23.67069284,191.21,191.2,0.3631]
[1738873172073,23.67069284,191.22,191.21,0.3631]
[1738873172352,1.5689,191.21,191.19,1.0]
[1738873172682,23.67069284,191.2,191.18,0.3631]
[1738873172982,23.67069284,191.19,191.18,0.3631]
[1738873174179,23.67069284,191.19,191.17,1.0]
[1738873174180,23.67069284,191.2,191.19,0.3631]
[1738873174480,23.67069284,191.2,191.18,0.3631]
[1738873174681,23.67069284,191.19,191.18,0.3631]
[1738873175078,23.67069284,191.19,191.15,1.4261]
[1738873175261,23.67069284,191.16,191.15,0.4261]
[1738873176078,0.09452411,191.19,191.16,1.0]
[1738873176079,23.67069284,191.17,191.16,1.0]
[1738873176284,23.67069284,191.17,191.15,0.4261]
[1738873176791,32.93169284,191.16,191.15,0.063]
[1738873178762,32.93169284,191.16,191.15,1.063]
[1738873179072,32.93169284,191.16,191.15,0.063]
[1738873181890,32.93169284,191.16,191.09,1.3631]
[1738873181891,20.0,191.13,191.09,1.3631]
[1738873182077,23.67069284,191.1,191.07,1.3631]
[1738873182276,23.67069284,191.1,191.0,0.063]
[1738873182277,23.67069284,191.08,191.05,1.3631]
[1738873182597,82.86239,191.12,191.04,6.14882133]
[1738873182598,23.67069284,191.06,191.04,6.14882133]
[1738873182772,23.67069284,191.05,191.04,6.14882133]
[1738873183789,1.5703,191.04,191.02,0.3631]
[1738873184089,23.67069284,191.03,191.02,0.3631]
[1738873184283,23.67069284,191.03,191.01,1.0]
[1738873184479,23.67069284,191.02,191.0,1.4261]
[1738873184661,23.67069284,191.01,191.0,1.4261]
[1738873185671,5.4961,191.04,191.0,1.4261]
[1738873185672,23.67069284,191.02,191.0,1.4261]
[1738873185880,23.67069284,191.07,191.06,1.3631]
[1738873186066,1.5701,191.07,191.06,1.3631]
[1738873186385,23.67069284,191.1,191.07,1.3631]
[1738873186568,23.67069284,191.1,191.08,0.3631]
[1738873186890,23.67069284,191.1,191.09,1.0]
[1738873187416,25.24059284,191.1,191.09,1.0]
[1738873187871,25.24059284,191.1,191.09,1.3631]
[1738873187872,1.5699,191.1,191.09,1.3631]
[1738873188078,6.6153,191.13,191.09,1.3631]
[1738873188079,30.28599284,191.13,191.09,1.3631]
[1738873188385,31.85559284,191.13,191.12,1.3631]
[1738873188582,31.85559284,191.13,191.12,1.0]
[1738873189370,31.85559284,191.13,191.11,0.3631]
[1738873189575,23.67069284,191.12,191.11,1.3631]
[1738873190786,25.24029284,191.12,191.11,1.3631]
[1738873191397,25.24029284,191.12,191.11,1.0]
[1738873192493,25.24029284,191.12,191.1,1.0]
[1738873192670,23.67069284,191.11,191.1,1.0]
[1738873193564,23.67069284,191.11,191.1,1.3631]
[1738873193769,25.24029284,191.12,191.1,1.3631]
[1738873193999,25.24029284,191.12,191.11,1.0]
[1738873194368,25.24029284,191.12,191.11,1.3631]
[1738873194598,23.67069284,191.13,191.11,1.3631]
[1738873194801,1.5695,191.14,191.13,1.3631]
[1738873195102,25.24019284,191.14,191.13,1.0]
[1738873195286,25.3398363,191.14,191.13,1.0]
[1738873196007,25.3398363,191.14,191.13,1.3631]
[1738873196799,25.3398363,191.14,191.11,1.3631]
[1738873197001,1.66914346,191.14,191.13,1.0]
[1738873197881,1.66914346,191.14,191.12,1.0]
[1738873198207,23.67069284,191.13,191.11,1.0]
[1738873198381,23.67069284,191.12,191.11,1.0]
[1738873198880,14.80621099,191.12,191.1,1.0]
[1738873199103,14.80621099,191.11,191.09,1.0]
[1738873199279,14.80621099,191.1,191.09,1.0]
[1738873200002,16.37601099,191.1,191.08,1.0]
[1738873200187,14.80621099,191.09,191.05,1.0]
[1738873200393,14.80621099,191.06,191.04,1.0]
[1738873200696,14.80621099,191.05,191.04,1.3631]
[1738873201084,14.80621099,191.05,191.03,1.0]
[1738873201374,14.80621099,191.04,191.03,1.0]
[1738873201680,14.80621099,191.04,191.0,1.4261]
[1738873201899,14.80621099,191.01,191.0,1.063]
[1738873202102,14.80621099,191.01,191.0,0.063]
[1738873202103,16.37671099,191.01,191.0,0.063]
[1738873202295,30.03953952,191.01,191.0,0.063]
[1738873202918,38.95967932,191.01,191.0,0.063]
[1738873203122,38.83418932,191.01,191.0,0.063]
[1738873203443,25.29685079,191.01,191.0,1.4261]
[1738873203601,25.29655079,191.05,191.04,1.0]
[1738873203805,23.72635079,191.07,191.04,1.3631]
[1738873204005,23.72635079,191.07,191.06,1.0]
[1738873204534,25.29645079,191.07,191.06,1.0]
[1738873205038,25.29645079,191.07,191.03,1.3631]
[1738873205220,23.72635079,191.04,191.03,1.3631]
[1738873205421,23.72635079,191.04,191.01,1.0]
[1738873205618,23.72635079,191.02,191.01,1.0]
[1738873206029,23.72635079,191.02,191.0,1.063]
[1738873206221,23.72635079,191.01,191.0,0.063]
[1738873206429,25.29685079,191.01,191.0,1.063]
[1738873206935,25.29685079,191.01,191.0,0.063]
[1738873207238,25.29685079,191.01,191.0,1.063]
[1738873207609,25.29685079,191.01,191.0,1.4261]
[1738873207808,1.5705,191.02,191.01,1.3631]
[1738873208111,1.5704,191.03,191.02,1.3631]
[1738873208323,25.29665079,191.04,191.03,1.3631]
[1738873208532,25.29645079,191.06,191.05,1.0]
[1738873208936,23.72635079,191.08,191.07,1.3631]
[1738873209139,23.72635079,191.11,191.1,1.0]
[1738873209438,1.66914346,191.14,191.13,1.3631]
[1738873209665,0.09964346,191.14,191.13,1.3631]
[1738873213138,1.66914346,191.14,191.13,1.3631]
[1738873213545,25.39549425,191.14,191.13,1.3631]
[1738873213737,0.09964346,191.14,191.13,1.3631]
[1738873214449,1.66914346,191.14,191.13,1.3631]
[1738873214969,25.39549425,191.14,191.13,1.3631]
[1738873215343,25.50739778,191.14,191.13,1.0]
[1738873215542,25.50739778,191.14,191.12,1.0]
[1738873215748,23.72635079,191.13,191.11,1.0]
[1738873215958,1.78104699,191.14,191.03,8.0362]
[1738873215959,23.72635079,191.12,191.1,1.0]
[1738873216239,23.72635079,191.11,191.09,1.0]
[1738873216452,23.72635079,191.1,191.09,1.3631]
[1738873217336,25.29615079,191.1,191.09,1.0]
[1738873217541,25.29615079,191.1,191.09,1.063]
[1738873217737,25.29615079,191.1,191.09,0.063]
[1738873218462,25.29615079,191.1,191.09,1.063]
[1738873218640,25.29615079,191.1,191.09,1.4261]
[1738873218837,23.72635079,191.11,191.1,0.3631]
[1738873219140,1.5697,191.12,191.09,0.063]
[1738873219457,86.13570353,191.14,191.09,0.063]
[1738873219458,20.0,191.11,191.09,0.063]
[1738873219665,1.5696,191.13,191.12,1.0]
[1738873219964,1.5696,191.13,191.12,1.3631]
[1738873220337,25.29595079,191.13,191.12,1.3631]
[1738873220865,25.29595079,191.13,191.12,1.0]
[1738873221069,25.29595079,191.13,191.12,1.3631]
[1738873221237,0.11190353,191.14,191.13,1.3631]
[1738873221574,0.11190353,191.14,191.13,25.08945079]